bitfinex/quotes_SOLUSD_20240703
["timestamp","ask_amount","ask_price","bid_price","bid_amount"]
[1720001806580,44.34,144.69,144.44,44.34]
[1720001806885,44.34,144.72,144.48,44.34]
[1720001807555,48.03577937,144.76,144.48,44.34]
[1720001807866,44.34,144.8,144.54,44.34]
[1720001808958,44.34,144.83,144.58,44.34]
[1720001809370,44.34,144.79,144.55,44.34]
[1720001809765,44.34,144.83,144.55,44.34]
[1720001811081,44.34,144.83,144.61,44.34]
[1720001811279,49.78468693,144.89,144.65,44.34]
[1720001811980,44.34,144.9,144.69,44.34]
[1720001812862,44.34,144.93,144.69,44.34]
[1720001814374,34.76492596,144.69,144.43,0.20539821]
[1720001814566,4.2148,144.53,144.43,0.20539821]
[1720001814886,44.34,144.44,144.42,0.03333333]
[1720001815181,44.34,144.48,144.32,2.0]
[1720001815382,4.2148,144.53,144.32,2.0]
[1720001816384,4.2148,144.53,144.34,44.34]
[1720001816583,4.2148,144.53,144.32,2.0]
[1720001817079,4.2148,144.53,144.33,44.34]
[1720001817281,4.2148,144.53,144.32,2.0]
[1720001817466,4.2148,144.53,144.36,44.34]
[1720001817869,4.2148,144.53,144.32,2.0]
[1720001818167,44.34,144.49,144.32,2.0]
[1720001818368,4.2148,144.53,144.32,2.0]
[1720001818564,4.2148,144.53,144.32,46.34]
[1720001819699,4.2148,144.53,144.36,44.34]
[1720001821278,4.2148,144.53,144.4,44.34]
[1720001821667,4.2148,144.53,144.35,44.34]
[1720001821871,4.2148,144.53,144.39,44.54]
[1720001822471,4.2148,144.53,144.45,44.34]
[1720001822668,4.2148,144.53,144.41,44.34]
[1720001822669,4.2148,144.53,144.49,44.34]
[1720001823474,4.2148,144.53,144.39,0.2]
[1720001823683,4.2148,144.53,144.44,44.34]
[1720001823884,4.2148,144.53,144.48,44.34]
[1720001824172,101.85715907,144.93,144.51,44.34]
[1720001824372,44.34,144.8,144.55,44.34]
[1720001825193,44.34,144.76,144.48,44.34]
[1720001825485,44.34,144.71,144.48,44.34]
[1720001826068,44.34,144.76,144.48,44.34]
[1720001826679,44.34,144.76,144.52,44.34]
[1720001826887,44.34,144.83,144.56,44.34]
[1720001827093,44.34,144.76,144.52,44.34]
[1720001827584,44.34,144.83,144.56,44.34]
[1720001827794,88.68,144.83,144.56,44.34]
[1720001827973,44.34,144.83,144.56,44.34]
[1720001828485,44.34,144.83,144.6,44.34]
[1720001828687,44.34,144.87,144.6,44.34]
[1720001828987,44.34,144.87,144.55,44.34]
[1720001828988,44.34,144.97,144.64,44.34]
[1720001829183,44.34,144.88,144.64,44.34]
[1720001830078,44.34,144.85,144.55,44.34]
[1720001830280,44.34,144.85,144.61,44.34]
[1720001830481,88.68,144.9,144.61,44.34]
[1720001830682,44.34,144.9,144.61,44.34]
[1720001831989,44.34,144.9,144.65,44.34]
[1720001832288,44.34,144.85,144.61,44.34]
[1720001832495,44.34,144.89,144.65,44.34]
[1720001832877,44.34,144.89,144.62,44.34]
[1720001833075,44.34,144.89,144.55,44.34]
[1720001833283,44.34,144.89,144.64,44.34]
[1720001833583,44.34,144.89,144.6,44.34]
[1720001833584,44.34,144.85,144.6,44.34]
[1720001834088,44.34,144.85,144.64,44.34]
[1720001834699,44.34,144.89,144.64,44.34]
[1720001835072,44.34,144.93,144.68,44.34]
[1720001835897,44.34,144.89,144.62,44.34]
[1720001836086,44.34,144.85,144.62,44.34]
[1720001837195,44.34,144.79,144.48,44.34]
[1720001837396,44.34,144.79,144.54,44.34]
[1720001837981,44.34,144.75,144.39,0.2]
[1720001838283,44.34,144.75,144.48,88.68]
[1720001838477,2.16378114,144.74,144.52,44.34]
[1720001839295,2.16378114,144.74,144.48,44.34]
[1720001839484,44.34,144.71,144.48,44.34]
[1720001840296,2.16378114,144.74,144.48,44.34]
[1720001840888,2.16378114,144.74,144.55,44.34]
[1720001841395,2.16378114,144.74,144.59,44.34]
[1720001842099,2.16378114,144.74,144.55,44.34]
[1720001843178,2.16378114,144.74,144.61,44.34]
[1720001844093,2.16378114,144.74,144.39,0.2]
[1720001844301,12.22284758,144.74,144.54,44.34]
[1720001844503,10.05906644,144.73,144.54,44.34]
[1720001844680,10.05665826,144.73,144.54,44.34]
[1720001845209,10.05542514,144.72,144.54,44.34]
[1720001845403,54.39542514,144.73,144.48,44.34]
[1720001845710,44.34,144.69,144.46,44.34]
[1720001846214,44.34,144.71,144.46,44.34]
[1720001846382,2.16378114,144.74,144.5,44.34]
[1720001846583,2.16378114,144.74,144.48,44.34]
[1720001846584,2.16378114,144.74,144.52,44.34]
[1720001847291,2.16378114,144.74,144.48,44.34]
[1720001847497,2.15424028,144.73,144.56,44.34]
[1720001849510,2.15424028,144.73,144.52,44.34]
[1720001850511,2.15424028,144.73,144.55,44.34]
[1720001850714,2.15424028,144.73,144.6,44.34]
[1720001852109,2.15424028,144.73,144.55,44.34]
[1720001852110,2.15424028,144.73,144.64,44.34]
[1720001852312,44.34,144.9,144.64,44.34]
[1720001852509,19.95160093,144.89,144.62,44.34]
[1720001852715,19.95160093,144.88,144.62,44.34]
[1720001852903,19.95160093,144.87,144.62,44.34]
[1720001853813,2.15424029,144.86,144.62,44.34]
[1720001854017,22.10845458,144.86,144.62,44.34]
[1720001854198,19.95421429,144.85,144.62,44.34]
[1720001854399,2.1542403,144.84,144.62,44.34]
[1720001854606,64.29421429,144.83,144.55,44.34]
[1720001854806,19.95421429,144.82,144.55,44.34]
[1720001855002,19.95421429,144.82,144.55,88.68]
[1720001855210,2.1542403,144.81,144.55,44.34]
[1720001855412,19.95421429,144.8,144.55,44.34]
[1720001855595,2.1542403,144.81,144.55,44.34]
[1720001856211,2.1542403,144.81,144.6,44.34]
[1720001856392,44.34,144.83,144.6,44.34]
[1720001856597,2.15424031,144.8,144.6,44.34]
[1720001856912,2.15424031,144.8,144.64,44.34]
[1720001857705,2.15424031,144.8,144.61,44.34]
[1720001859919,44.34,144.79,144.55,44.34]
[1720001860314,2.14484208,144.78,144.55,44.34]
[1720001860798,2.14484208,144.78,144.56,25.0]
[1720001861004,100.0,144.77,144.51,25.0]
[1720001861199,2.13553783,144.76,144.54,44.34]
[1720001861902,2.13553783,144.76,144.55,100.0]
[1720001862224,2.13553783,144.76,144.58,43.84]
[1720001862905,2.13553783,144.76,144.62,44.34]
[1720001863122,2.36172423,144.76,144.62,44.34]
[1720001864615,2.36172423,144.76,144.55,44.34]
[1720001864616,100.0,144.42,144.22,103.92363761]
[1720001864819,100.0,144.46,144.25,44.34]
[1720001865205,100.0,144.4,144.25,44.34]
[1720001865408,100.0,144.4,144.22,0.36765329]
[1720001865903,44.34,144.49,144.22,0.36765329]
[1720001865904,100.0,144.41,144.22,0.36765329]
[1720001866104,100.0,144.43,144.22,0.36765329]
[1720001866323,100.0,144.41,144.22,0.36765329]
[1720001867149,100.0,144.39,144.22,0.36765329]
[1720001867625,100.0,144.37,144.22,0.36765329]
[1720001867836,100.0,144.35,144.22,0.36765329]
[1720001868006,2.13563087,144.34,144.22,0.36765329]
[1720001868331,100.0,144.33,144.22,0.36765329]
[1720001870204,100.0,144.24,144.22,0.36765329]
[1720001870404,100.0,144.15,144.14,0.9811762]
[1720001871202,100.0,144.13,144.12,0.03333333]
[1720001871707,100.0,144.07,144.06,0.04113166]
[1720001872114,44.34,144.08,143.84,0.20230751]
[1720001872115,100.0,144.01,143.84,0.20230751]
[1720001872502,100.0,144.01,143.83,144.34]
[1720001873008,100.0,144.01,143.83,44.34]
[1720001873605,100.0,144.01,143.79,0.9811762]
[1720001873806,100.0,144.01,143.82,44.37333333]
[1720001874005,100.0,144.01,143.82,69.37333333]
[1720001874227,100.0,144.01,143.86,44.34]
[1720001874402,100.0,144.03,143.86,44.34]
[1720001874601,100.0,144.05,143.86,44.34]
[1720001874806,100.0,144.1,144.0,100.5]
[1720001875005,100.0,144.22,144.0,144.84]
[1720001875222,46.47563087,144.34,144.0,144.84]
[1720001875223,100.0,144.23,144.0,144.84]
[1720001875437,44.34,144.3,144.05,44.34]
[1720001875438,100.0,144.27,144.05,44.34]
[1720001876254,2.1356767,144.26,144.09,44.34]
[1720001876408,2.1356767,144.26,144.1,100.0]
[1720001876727,2.1356767,144.26,144.17,0.4483]
[1720001880819,2.1356767,144.26,144.19,44.34]
[1720001883125,2.1356767,144.26,144.23,44.34]
[1720001883823,100.0,144.43,144.23,44.34]
[1720001884016,100.0,144.45,144.27,44.34]
[1720001884219,100.0,144.47,144.27,44.34]
[1720001885416,100.0,144.49,144.27,44.34]
[1720001885626,100.0,144.49,144.27,88.68]
[1720001885821,100.0,144.49,144.31,44.34]
[1720001886024,100.0,144.51,144.31,44.34]
[1720001886227,100.0,144.49,144.31,44.34]
[1720001886534,100.0,144.51,144.31,44.34]
[1720001887623,100.0,144.53,144.35,44.34]
[1720001889237,100.0,144.55,144.35,44.34]
[1720001889419,100.9811762,144.57,144.39,44.34]
[1720001889621,0.9811762,144.57,144.39,44.34]
[1720001890025,0.9811762,144.57,144.2,125.0]
[1720001890026,100.0,144.5,144.2,125.0]
[1720001890313,100.0,144.48,144.31,44.34]
[1720001890510,100.0,144.44,144.27,44.34]
[1720001890753,100.0,144.42,144.27,44.34]
[1720001890926,100.0,144.42,144.23,44.34]
[1720001891122,100.0,144.44,144.23,44.34]
[1720001891319,100.0,144.45,144.23,44.34]
[1720001892917,100.0,144.47,144.27,44.34]
[1720001893225,100.0,144.45,144.27,44.34]
[1720001893532,100.0,144.49,144.27,88.68]
[1720001893720,144.34,144.55,144.27,44.34]
[1720001893721,100.0,144.46,144.27,44.34]
[1720001894247,100.0,144.44,144.27,44.34]
[1720001894424,44.34,144.55,144.2,44.34]
[1720001894425,44.34,144.49,144.2,44.34]
[1720001894623,44.34,144.45,144.2,44.34]
[1720001894823,100.0,144.42,144.24,44.34]
[1720001895019,100.0,144.42,144.2,44.34]
[1720001895350,100.0,144.43,144.24,44.34]
[1720001895523,100.0,144.37,144.17,0.4483]
[1720001895719,100.0,144.37,144.19,44.34]
[1720001896047,44.34,144.49,144.17,0.4483]
[1720001896048,100.0,144.33,144.17,0.4483]
[1720001896424,100.0,144.35,144.17,0.4483]
[1720001896618,100.0,144.33,144.17,0.4483]
[1720001896813,100.0,144.31,144.17,0.4483]
[1720001897039,144.34,144.36,144.17,0.4483]
[1720001897220,100.0,144.36,144.17,0.4483]
[1720001897431,100.0,144.38,144.17,0.4483]
[1720001897639,100.0,144.36,144.17,0.4483]
[1720001897946,100.0,144.38,144.17,0.4483]
[1720001899223,100.0,144.4,144.17,0.4483]
[1720001899418,100.0,144.4,144.18,100.0]
[1720001899818,100.0,144.43,144.22,44.34]
[1720001900641,100.0,144.45,144.22,44.34]
[1720001900962,100.0,144.47,144.26,44.34]
[1720001901456,100.0,144.49,144.26,44.34]
[1720001901651,100.0,144.49,144.26,144.34]
[1720001901829,100.0,144.49,144.26,44.34]
[1720001902156,100.0,144.45,144.21,25.0]
[1720001902365,100.0,144.43,144.22,44.34]
[1720001903058,100.0,144.47,144.22,44.34]
[1720001903350,100.0,144.47,144.22,144.34]
[1720001903640,44.34,144.48,144.26,44.34]
[1720001903954,100.0,144.54,144.3,44.34]
[1720001905049,44.34,144.55,144.31,25.0]
[1720001905360,44.34,144.55,144.34,44.34]
[1720001905553,100.0,144.56,144.34,44.34]
[1720001905868,100.0,144.53,144.34,44.34]
[1720001906028,100.0,144.51,144.27,44.34]
[1720001906742,100.0,144.49,144.27,44.34]
[1720001906939,100.0,144.51,144.27,44.34]
[1720001907146,144.34,144.53,144.27,44.34]
[1720001907650,100.0,144.48,144.27,44.34]
[1720001908251,44.34,144.49,144.27,44.34]
[1720001908438,100.0,144.51,144.27,44.34]
[1720001909134,100.0,144.53,144.27,44.34]
[1720001909336,100.0,144.53,144.27,213.68]
[1720001909532,144.34,144.55,144.3,25.0]
[1720001909851,100.0,144.53,144.32,44.34]
[1720001910349,144.34,144.55,144.32,44.34]
[1720001910533,44.34,144.55,144.32,44.34]
[1720001911131,0.9811762,144.57,144.32,144.34]
[1720001911334,0.9811762,144.57,144.36,44.34]
[1720001912151,0.9811762,144.57,144.37,25.0]
[1720001912949,0.9811762,144.57,144.41,44.34]
[1720001916946,0.9811762,144.57,144.4,44.34]
[1720001919355,0.9811762,144.57,144.44,44.34]
[1720001920140,0.9811762,144.57,144.43,100.0]
[1720001920339,0.9811762,144.57,144.46,44.34]
[1720001922252,0.9811762,144.57,144.46,69.34]
[1720001922555,0.9811762,144.57,144.46,44.34]
[1720001923659,0.8309418,144.57,144.46,44.34]
[1720001924042,0.8309418,144.57,144.46,69.34]
[1720001924740,0.8309418,144.57,144.5,44.34]
[1720001924948,0.8309418,144.57,144.5,69.34]
[1720001925147,0.8309418,144.57,144.5,44.34]
[1720001925567,0.8309418,144.57,144.55,44.34]
[1720001926541,0.8310228,144.66,144.55,44.34]
[1720001928268,0.8310228,144.66,144.56,25.0]
[1720001928564,0.8310228,144.66,144.59,44.34]
[1720001928772,0.8310228,144.66,144.55,44.34]
[1720001929354,0.8310228,144.66,144.55,69.34]
[1720001929571,0.8310228,144.66,144.56,100.0]
[1720001929742,0.8310228,144.66,144.6,44.34]
[1720001930251,0.8310228,144.66,144.55,44.34]
[1720001930655,0.8310228,144.66,144.55,144.34]
[1720001931301,0.8310228,144.66,144.55,44.34]
[1720001931467,0.8310228,144.66,144.56,25.0]
[1720001931771,0.8310228,144.66,144.55,88.68]
[1720001931949,0.8310228,144.66,144.55,44.34]
[1720001932562,0.8310228,144.66,144.48,44.34]
[1720001934079,0.8310228,144.66,144.48,69.34]
[1720001934277,0.8310228,144.66,144.48,88.68]
[1720001934463,0.8310228,144.66,144.48,188.68]
[1720001934846,0.8310228,144.66,144.48,88.68]
[1720001936361,0.8310228,144.66,144.48,188.68]
[1720001936582,0.8310228,144.66,144.52,44.34]
[1720001937677,0.8310228,144.66,144.48,44.34]
[1720001938876,0.8310228,144.66,144.24,18.05918583]
[1720001939192,100.0,144.33,144.08,44.34]
[1720001939392,100.0,144.31,144.08,44.34]
[1720001939676,144.34,144.31,144.05,44.34]
[1720001939987,144.34,144.31,144.02,0.20205466]
[1720001939988,100.0,144.29,144.02,0.20205466]
[1720001940175,100.0,144.34,144.09,100.0]
[1720001940480,100.0,144.34,144.11,44.34]
[1720001940695,44.34,144.35,144.11,44.34]
[1720001940878,100.0,144.34,144.11,144.34]
[1720001941484,100.0,144.34,144.11,44.34]
[1720001941683,44.34,144.35,144.13,100.0]
[1720001941985,100.0,144.36,144.13,100.0]
[1720001943081,100.0,144.36,144.12,100.0]
[1720001944066,100.0,144.36,144.12,125.0]
[1720001944288,100.0,144.36,144.15,45.1710228]
[1720001945283,144.34,144.41,144.15,45.1710228]
[1720001945284,100.0,144.33,144.15,0.8310228]
[1720001945582,144.34,144.34,144.15,0.8310228]
[1720001945885,100.0,144.32,144.15,0.8310228]
[1720001946384,44.34,144.34,144.15,0.8310228]
[1720001948170,100.0,144.32,144.15,0.8310228]
[1720001948364,100.0,144.3,144.15,0.8310228]
[1720001948568,100.0,144.32,144.15,0.8310228]
[1720001948985,44.34,144.34,144.15,0.8310228]
[1720001948986,144.34,144.34,144.15,0.8310228]
[1720001949160,100.0,144.33,144.15,0.8310228]
[1720001949484,100.0,144.31,144.15,0.8310228]
[1720001949671,44.34,144.34,144.15,0.8310228]
[1720001950186,100.0,144.33,144.15,0.8310228]
[1720001950564,44.34,144.34,144.15,0.8310228]
[1720001952784,100.0,144.35,144.15,0.8310228]
[1720001954487,100.0,144.33,144.15,0.8310228]
[1720001954692,100.0,144.31,144.15,0.8310228]
[1720001954902,100.0,144.33,144.15,0.8310228]
[1720001955373,100.0,144.31,144.15,0.8310228]
[1720001955576,100.0,144.35,144.15,0.8310228]
[1720001956403,100.0,144.35,144.15,45.1710228]
[1720001958273,100.0,144.35,144.15,0.8310228]
[1720001959098,100.0,144.31,144.17,2.61179333]
[1720001960183,100.0,144.33,144.17,2.61179333]
[1720001961315,100.0,144.35,144.17,2.61179333]
[1720001961798,100.0,144.35,144.18,2.16334328]
[1720001965014,100.0,144.33,144.18,2.16334328]
[1720001965681,100.0,144.35,144.18,2.16334328]
[1720001966113,100.0,144.33,144.18,2.16334328]
[1720001966802,100.0,144.31,144.17,0.4483]
[1720001967714,100.0,144.28,144.17,0.4483]
[1720001968579,100.0,144.3,144.17,0.4483]
[1720001968785,44.34,144.33,144.17,0.4483]
[1720001968786,100.0,144.32,144.17,0.4483]
[1720001970391,100.0,144.36,144.17,2.61179333]
[1720001970583,100.0,144.34,144.18,2.16334328]
[1720001971787,100.0,144.36,144.18,2.16334328]
[1720001973390,100.0,144.34,144.18,2.16334328]
[1720001974096,100.0,144.4,144.18,2.16334328]
[1720001974097,100.0,144.31,144.18,2.16334328]
[1720001974296,100.0,144.31,144.17,0.4483]
[1720001975214,44.34,144.36,144.17,2.61179333]
[1720001975215,100.0,144.33,144.17,2.61179333]
[1720001975592,100.0,144.35,144.17,2.61179333]
[1720001976916,100.0,144.35,144.18,2.16334328]
[1720001980415,100.0,144.33,144.18,2.16334328]
[1720001980997,100.0,144.35,144.18,2.16334328]
[1720001984097,100.0,144.35,144.18,2.33772688]
[1720001989706,100.0,144.35,144.18,38.75772688]
[1720001990108,36.42,144.42,144.18,2.33772688]
[1720001990109,100.0,144.33,144.18,2.33772688]
[1720001992704,100.0,144.35,144.18,2.33772688]
[1720001993809,100.0,144.35,144.18,38.75772688]
[1720001994728,100.0,144.35,144.18,2.33772688]
[1720002000915,100.0,144.32,144.18,2.33772688]
[1720002001229,36.38232734,144.47,144.18,2.33772688]
[1720002001230,100.0,144.26,144.18,2.33772688]
[1720002001836,100.0,144.24,144.18,2.33772688]
[1720002002226,100.0,144.27,144.18,2.33772688]
[1720002002532,100.0,144.31,144.18,2.33772688]
[1720002003530,100.0,144.33,144.18,2.33772688]
[1720002003734,100.0,144.35,144.18,2.33772688]
[1720002004521,100.0,144.34,144.18,2.33772688]
[1720002005119,100.0,144.36,144.18,2.33772688]
[1720002005757,100.0,144.34,144.18,2.33772688]
[1720002005939,36.42,144.41,144.18,2.33772688]
[1720002005940,100.0,144.36,144.18,2.33772688]
[1720002006923,100.0,144.34,144.18,2.33772688]
[1720002007127,100.0,144.36,144.18,2.33772688]
[1720002009528,100.0,144.34,144.18,2.33772688]
[1720002011371,100.0,144.32,144.18,2.33772688]
[1720002012326,100.0,144.3,144.18,2.33772688]
[1720002012555,100.0,144.28,144.18,2.33772688]
[1720002012854,100.0,144.3,144.18,2.33772688]
[1720002013222,100.0,144.28,144.18,2.33772688]
[1720002013633,100.0,144.3,144.18,2.33772688]
[1720002013838,100.0,144.34,144.18,2.33772688]
[1720002014031,100.0,144.36,144.18,2.33772688]
[1720002014342,100.0,144.34,144.18,2.33772688]
[1720002014743,100.0,144.36,144.18,2.33772688]
[1720002016352,100.0,144.36,144.18,38.75772688]
[1720002017051,100.0,144.36,144.18,2.33772688]
[1720002017257,100.0,144.34,144.18,2.33772688]
[1720002017636,100.0,144.36,144.18,2.33772688]
[1720002019663,100.0,144.34,144.18,2.33772688]
[1720002020056,100.0,144.36,144.18,2.33772688]
[1720002021734,100.0,144.35,144.18,2.33772688]
[1720002022549,100.0,144.33,144.18,2.33772688]
[1720002022937,100.0,144.33,144.18,0.1743836]
[1720002023252,100.0,144.35,144.18,0.1743836]
[1720002027862,100.0,144.35,144.25,32.36]
[1720002028059,4.84,144.37,144.28,32.36]
[1720002028271,4.84,144.37,144.31,32.36]
[1720002030262,4.84,144.37,144.34,32.36]
[1720002031462,4.84,144.37,144.34,64.72]
[1720002031863,4.84,144.37,144.33,36.34]
[1720002033849,100.0,144.54,144.33,36.34]
[1720002034053,100.0,144.56,144.37,36.34]
[1720002034252,105.66771405,144.56,144.37,36.34]
[1720002036390,5.66771405,144.56,144.37,36.34]
[1720002036576,5.66771405,144.56,144.41,36.34]
[1720002037264,105.66771405,144.6,144.41,36.34]
[1720002038068,5.66771405,144.6,144.41,36.34]
[1720002038275,105.66771405,144.62,144.41,36.34]
[1720002038978,5.66771405,144.62,144.45,36.34]
[1720002039559,100.0,144.62,144.45,36.34]
[1720002040063,100.0,144.6,144.41,36.34]
[1720002040275,105.66771405,144.62,144.41,36.34]
[1720002040568,5.66771405,144.62,144.41,36.34]
[1720002042473,0.6527243,144.63,144.41,136.34]
[1720002042671,0.6527243,144.63,144.41,36.34]
[1720002043287,0.6527243,144.63,144.48,36.34]
[1720002045655,0.6527243,144.63,144.52,36.34]
[1720002045861,0.6527243,144.63,144.56,36.34]
[1720002047475,0.6527243,144.63,144.6,36.34]
[1720002049395,0.6527243,144.63,144.59,36.34]
[1720002050874,0.1527243,144.63,144.55,36.34]
[1720002051450,0.1527243,144.63,144.5,36.34]
[1720002055267,0.1527243,144.63,144.55,36.34]
[1720002058785,0.1527243,144.63,144.55,72.68]
[1720002059568,0.1527243,144.63,144.55,36.34]
[1720002063500,0.1527243,144.63,144.48,36.34]
[1720002064991,0.1527243,144.63,144.41,72.68]
[1720002065202,100.0,144.62,144.37,5.12607437]
[1720002065372,100.0,144.62,144.43,36.34]
[1720002065568,0.1527243,144.63,144.43,36.34]
[1720002065767,6.49932724,144.63,144.43,36.34]
[1720002065979,0.1527243,144.63,144.43,36.34]
[1720002066511,0.1527243,144.63,144.47,36.34]
[1720002067613,0.1527243,144.63,144.51,36.34]
[1720002067920,0.1527243,144.63,144.55,36.34]
[1720002068894,0.1527243,144.63,144.6,36.34]
[1720002071985,0.86819842,144.78,144.6,36.34]
[1720002074298,7.21480136,144.78,144.6,36.34]
[1720002074599,6.34660294,144.77,144.6,36.34]
[1720002074795,0.86819842,144.78,144.6,36.34]
[1720002075408,0.86819842,144.78,144.64,36.34]
[1720002075619,0.86819842,144.78,144.64,136.34]
[1720002075799,0.86819842,144.78,144.69,36.34]
[1720002077747,0.86819842,144.78,144.73,36.34]
[1720002079410,0.86819842,144.78,144.74,2.11139445]
[1720002080301,0.86819842,144.78,144.63,36.34]
[1720002080496,0.86819842,144.78,144.64,2.11285421]
[1720002081016,7.21480136,144.78,144.64,2.11285421]
[1720002081915,0.86819842,144.78,144.67,36.34]
[1720002082126,0.86819842,144.78,144.64,2.11285421]
[1720002082316,0.86819842,144.78,144.65,2.11270814]
[1720002084234,0.86819842,144.78,144.7,36.34]
[1720002085915,0.86819842,144.78,144.71,2.11183217]
[1720002086725,0.86819842,144.78,144.62,36.34]
[1720002086924,0.86819842,144.78,144.63,2.1130003]
[1720002087114,0.5269997,144.63,144.62,36.34]
[1720002087310,0.86819842,144.78,144.62,36.34]
[1720002090137,0.86819842,144.78,144.62,72.68]
[1720002090653,0.86819842,144.78,144.67,36.34]
[1720002092918,0.86819842,144.78,144.71,36.34]
[1720002094653,0.86819842,144.78,144.71,136.34]
[1720002094821,0.86819842,144.78,144.75,36.34]
[1720002095549,0.8271079,144.92,144.75,36.34]
[1720002095746,0.8271079,144.92,144.75,136.34]
[1720002095951,0.8271079,144.92,144.79,36.34]
[1720002096549,0.8271079,144.92,144.8,36.34]
[1720002096758,0.8271079,144.92,144.76,72.68]
[1720002097840,0.8271079,144.92,144.69,136.34]
[1720002098154,0.8271079,144.92,144.75,36.34]
[1720002098350,0.8271079,144.92,144.79,36.34]
[1720002101146,0.8271079,144.92,144.83,36.34]
[1720002103239,0.8271079,144.92,144.88,36.34]
[1720002108664,0.8271079,145.07,144.88,36.34]
[1720002109955,6.34660294,145.06,144.88,36.34]
[1720002113461,6.34660294,145.06,144.92,36.34]
[1720002113765,0.8271079,145.07,144.92,36.34]
[1720002118237,0.8271079,145.07,144.9,36.34]
[1720002118639,100.8271079,145.07,144.85,36.34]
[1720002118856,100.0,145.03,144.82,36.34]
[1720002119164,6.34660294,145.02,144.82,36.34]
[1720002119967,136.34,145.01,144.76,36.34]
[1720002120175,100.0,144.97,144.69,36.34]
[1720002120463,100.0,144.95,144.74,36.34]
[1720002120661,100.0,144.93,144.69,72.68]
[1720002120841,100.0,144.91,144.69,36.34]
[1720002121047,6.34660294,144.9,144.69,36.34]
[1720002121248,100.0,144.89,144.69,36.34]
[1720002121443,106.34660294,144.89,144.69,36.34]
[1720002121751,106.34660294,144.89,144.62,36.34]
[1720002121752,100.0,144.87,144.62,36.34]
[1720002122064,100.0,144.85,144.62,36.34]
[1720002122269,236.34,144.85,144.62,36.34]
[1720002122473,100.0,144.83,144.62,36.34]
[1720002122656,100.0,144.79,144.55,72.68]
[1720002122970,100.0,144.79,144.55,36.34]
[1720002123266,100.0,144.78,144.55,36.34]
[1720002123472,36.34,144.81,144.55,36.34]
[1720002123473,200.0,144.76,144.55,36.34]
[1720002123661,36.34,144.77,144.55,36.34]
[1720002123863,200.0,144.78,144.55,44.27]
[1720002124887,100.0,144.75,144.55,44.27]
[1720002125769,100.0,144.73,144.55,44.27]
[1720002125962,200.0,144.73,144.48,44.27]
[1720002126961,100.0,144.75,144.52,44.27]
[1720002127368,100.0,144.76,144.56,45.0971079]
[1720002127575,200.0,144.74,144.56,45.0971079]
[1720002127955,100.0,144.74,144.56,45.0971079]
[1720002128157,100.0,144.76,144.56,45.0971079]
[1720002128579,100.0,144.75,144.56,45.0971079]